fUSD/lending_fUSD_20251117
["ID","MTS","AMOUNT","RATE_DAILY","PERIOD"]
[394248159,1763407838490,-4699.54609298,0.00035483,2]
[394248160,1763407838502,-375.0,0.00035622,2]
[394248161,1763407838512,-300.0,0.00035701,2]
[394248162,1763407838522,-375.0,0.00035759,2]
[394248163,1763407838533,-1000.0,0.00035949,7]
[394248164,1763407838543,-4699.54609298,0.00036172,2]
[394248165,1763407838554,-2203.7756,0.00036466,10]
[394248166,1763407838564,-23670.1389364,0.00036478,3]
[394248167,1763407838574,-582.751,0.00036487,45]
[394248168,1763407838584,-150.99,0.00036487,2]
[394248169,1763407838593,-6060.03,0.00036487,10]
[394248170,1763407838603,-151.0,0.00036487,31]
[394248171,1763407838613,-189.883674,0.00036487,31]
[394248172,1763407838622,-151.0,0.00036487,31]
[394248173,1763407838632,-151.0,0.00036487,30]
[394248174,1763407838641,-151.0,0.00036487,31]
[394248175,1763407838651,-151.0,0.00036487,31]
[394248176,1763407838661,-151.0,0.00036487,31]
[394248177,1763407838672,-500.0,0.00036488,30]
[394248178,1763407838682,-500.0,0.00036488,30]
[394248179,1763407838693,-500.0,0.00036488,30]
[394248180,1763407838706,-976.49929557,0.00036488,30]
[394248181,1763407838716,-500.0,0.00036488,30]
[394248182,1763407838726,-500.0,0.00036488,30]
[394248183,1763407838735,-500.0,0.00036488,30]
[394248184,1763407838745,-500.0,0.00036488,30]
[394248185,1763407838755,-500.0,0.00036488,30]
[394248186,1763407838764,-222.02216962,0.00036488,30]
[394248187,1763407838773,-316.93463838,0.00036488,30]
[394248188,1763407838783,-600.0,0.00036488,30]
[394248189,1763407838792,-600.0,0.00036488,30]
[394248190,1763407838802,-500.0,0.00036488,30]
[394248191,1763407838812,-500.0,0.00036488,30]
[394248192,1763407838823,-600.0,0.00036488,30]
[394248193,1763407838833,-600.0,0.00036488,30]
[394248194,1763407838842,-500.0,0.00036488,30]
[394248195,1763407838852,-600.0,0.00036488,30]
[394248196,1763407838861,-500.0,0.00036488,30]
[394248197,1763407838871,-500.0,0.00036488,30]
[394248198,1763407838881,-600.0,0.00036488,30]
[394248199,1763407838891,-475.56953106,0.00036488,30]
[394248200,1763407838900,-500.0,0.00036488,30]
[394248201,1763407838911,-500.0,0.00036488,30]
[394248202,1763407838920,-600.0,0.00036488,30]
[394248203,1763407838930,-500.0,0.00036488,30]
[394248204,1763407838940,-600.0,0.00036488,30]
[394248205,1763407838950,-998.29757791,0.00036488,30]
[394248206,1763407838960,-600.0,0.00036488,30]
[394248207,1763407838970,-600.0,0.00036488,30]
[394248208,1763407838985,-600.0,0.00036488,30]
[394248209,1763407838995,-600.0,0.00036488,30]
[394248210,1763407839007,-279.56808371,0.00036488,30]
[394248211,1763407839017,-500.0,0.00036488,30]
[394248212,1763407839028,-600.0,0.00036488,30]
[394248213,1763407839038,-500.0,0.00036488,30]
[394248214,1763407839049,-600.0,0.00036488,30]
[394248215,1763407839059,-500.0,0.00036488,30]
[394248216,1763407839068,-600.0,0.00036488,30]
[394248217,1763407839078,-500.0,0.00036488,30]
[394248218,1763407839087,-600.0,0.00036488,30]
[394248219,1763407839098,-800.0,0.00036488,30]
[394248220,1763407839108,-600.0,0.00036488,30]
[394248221,1763407839119,-600.0,0.00036488,30]
[394248222,1763407839129,-500.66603632,0.00036488,30]
[394248223,1763407839139,-600.0,0.00036488,30]
[394248224,1763407839148,-600.0,0.00036488,30]
[394248225,1763407839158,-600.0,0.00036488,30]
[394248226,1763407839167,-780.54409432,0.00036488,30]
[394248227,1763407839177,-600.0,0.00036488,30]
[394248228,1763407839186,-508.27223983,0.00036488,30]
[394248229,1763407839195,-500.0,0.00036488,30]
[394248230,1763407839207,-500.0,0.00036488,30]
[394248231,1763407839217,-600.0,0.00036488,30]
[394248232,1763407839228,-500.0,0.00036488,30]
[394248233,1763407839239,-499.4701768,0.00036488,30]
[394248234,1763407839248,-219.56292131,0.00036488,30]
[394248235,1763407839259,-500.0,0.00036488,30]
[394248236,1763407839268,-600.0,0.00036488,30]
[394248237,1763407839277,-500.0,0.00036488,30]
[394248238,1763407839288,-811.54162388,0.00036488,30]
[394248239,1763407839298,-500.0,0.00036488,30]
[394248240,1763407839310,-500.0,0.00036488,30]
[394248241,1763407839320,-500.0,0.00036488,30]
[394248242,1763407839331,-500.0,0.00036488,30]
[394248243,1763407839341,-500.0,0.00036488,30]
[394248244,1763407839351,-504.73463064,0.00036488,30]
[394248245,1763407839361,-165.85835932,0.00036488,30]
[394248246,1763407839370,-982.75455222,0.00036488,30]
[394248247,1763407839380,-153.20476342,0.00036488,30]
[394248248,1763407839390,-500.0,0.00036488,30]
[394248249,1763407839400,-285.30517008,0.00036488,30]
[394248250,1763407839410,-171.82088036,0.000365,5]
[394248251,1763407839422,-500.0,0.000365,5]
[394248252,1763407839432,-173.83996261,0.000365,5]
[394248253,1763407839441,-500.0,0.000365,5]
[394248254,1763407839452,-500.0,0.000365,5]
[394248255,1763407839462,-346.19916706,0.000365,5]
[394248256,1763407839472,-500.0,0.000365,5]
[394248259,1763407839482,-500.0,0.000365,5]
[394248261,1763407839492,-500.0,0.000365,3]
[394248262,1763407839501,-171.89906706,0.000365,5]
[394248263,1763407839512,-500.0,0.000365,5]
[394248264,1763407839522,-500.0,0.000365,5]
[394248265,1763407839532,-564.06,0.00036723,30]
[394248266,1763407839542,-720.86,0.000368,14]
[394248267,1763407839552,-164.78,0.000368,2]
[394248268,1763407839561,-547.25,0.000368,30]
[394248269,1763407839570,-2508.91,0.00036822,2]
[394248270,1763407839581,-4699.54609298,0.00036861,2]
[394248271,1763407839590,-150.0,0.00036962,7]
[394248272,1763407839599,-150.0,0.00036962,7]
[394248273,1763407839608,-150.0,0.00036962,7]
[394248274,1763407839618,-150.0,0.00036962,7]
[394248275,1763407839627,-150.0,0.00036962,7]
[394248276,1763407839637,-150.0,0.00036962,7]
[394248278,1763407839647,-150.0,0.00036962,7]
[394248279,1763407839656,-150.0,0.00036962,7]
[394248280,1763407839665,-150.0,0.00036962,7]
[394248281,1763407839675,-150.0,0.00036962,7]
[394248282,1763407839684,-150.0,0.00036962,7]
[394248283,1763407839694,-150.0,0.00036962,7]
[394248285,1763407839704,-1000.0,0.00037048,5]
[394248286,1763407839714,-759.77727445,0.00037048,5]
[394248287,1763407839724,-1000.0,0.00037048,5]
[394248288,1763407839734,-593.30755412,0.00037048,3]
[394248289,1763407839744,-1000.0,0.00037048,5]
[394248290,1763407839754,-181.61613088,0.000372,120]
[394248291,1763407839763,-7492.64,0.000372,14]
[394248292,1763407839773,-150.0,0.00037385,2]
[394248293,1763407839783,-150.0,0.00037385,120]
[394248294,1763407839792,-260.2318093,0.00037487,2]
[394248295,1763407839802,-2022.91,0.00037528,2]
[394248296,1763407839812,-23670.1389364,0.00037545,3]
[394248297,1763407839823,-4699.54609298,0.0003755,2]
[394248298,1763407839833,-500.0,0.00037555,2]
[394248299,1763407839842,-999.0,0.00037555,3]
[394248300,1763407839852,-5953.3,0.00037555,2]
[394248301,1763407839861,-740.06689584,0.00037596,5]
[394248302,1763407839870,-1500.0,0.00037596,5]
[394248303,1763407839880,-1350.86,0.00037657,2]
[394248304,1763407839889,-3011.9463,0.00037733,2]
[394248305,1763407839898,-4075.8433,0.00037733,2]
[394248306,1763407839908,-25540.9046,0.00037733,2]
[394248307,1763407839917,-234.7706,0.00037733,2]
[394248308,1763407839927,-150.0,0.00037783,7]
[394248309,1763407839936,-151.0,0.0003781,2]
[394248310,1763407839946,-151.0,0.0003781,2]
[394248311,1763407839957,-151.0,0.0003781,2]
[394248312,1763407839966,-151.0,0.0003781,2]
[394248313,1763407839979,-151.0,0.0003781,2]
[394248314,1763407839989,-151.0,0.0003781,2]
[394248315,1763407839999,-151.0,0.0003781,2]
[394248316,1763407840009,-151.0,0.0003781,2]
[394248317,1763407840020,-151.0,0.0003781,2]
[394248318,1763407840030,-151.0,0.0003781,2]
[394248319,1763407840039,-94680.5557455,0.00037823,3]
[394248320,1763407840049,-251130.67,0.00037833,2]
[394248321,1763407840060,-500.86745626,0.00037873,5]
[394248322,1763407840070,-150.0,0.00037988,7]
[394248323,1763407840080,-1123.38,0.00038,2]
[394248324,1763407840089,-97374.15634242,0.00038,2]
[394248325,1763407840099,-151.0,0.00038,31]
[394248326,1763407840108,-151.0,0.00038,31]
[394248327,1763407840118,-151.0,0.00038,31]
[394248328,1763407840127,-151.0,0.00038,31]
[394248329,1763407840137,-300.13979988,0.00038144,5]
[394248330,1763407840147,-4699.54609298,0.00038239,2]
[394248331,1763407840156,-150.0,0.00038331,7]
[394248332,1763407840166,-150.0,0.00038331,7]
[394248333,1763407840175,-150.64830389,0.00038356,5]
[394248334,1763407840185,-500.0,0.00038392,2]
[394248335,1763407840195,-150.0,0.00038604,7]
[394248336,1763407840206,-720.86,0.000387,14]
[394248337,1763407840216,-164.78,0.000387,30]
[394248338,1763407840225,-547.25,0.000387,30]
[394248339,1763407840234,-300.0,0.00038777,2]
[394248340,1763407840243,-151.0,0.0003883,14]
[394248341,1763407840252,-151.0,0.0003883,14]
[394248342,1763407840261,-33327.7153,0.00038843,2]
[394248343,1763407840271,-210.78428927,0.00038873,2]
[394248344,1763407840280,-608.0,0.00038892,2]
[394248345,1763407840289,-575.0,0.00038892,2]
[394248346,1763407840299,-7492.64,0.000389,14]
[394248347,1763407840310,-4699.54609298,0.00038928,2]
[394248348,1763407840378,-151.0,0.0003893,2]
[394248349,1763407840388,-151.0,0.0003893,2]
[394248350,1763407840397,-151.0,0.0003893,2]
[394248351,1763407840408,-151.0,0.0003893,2]
[394248352,1763407840418,-151.0,0.0003893,2]
[394248353,1763407840427,-263.62259856,0.0003893,2]
[394248354,1763407840436,-151.0,0.0003893,14]
[394248355,1763407840445,-500.0,0.00038943,30]
[394248356,1763407840457,-163.67783596,0.00038943,30]
[394248357,1763407840467,-500.0,0.00038943,7]
[394248358,1763407840476,-488.0,0.00038943,7]
[394248359,1763407840486,-500.0,0.00038943,30]
[394248360,1763407840495,-500.0,0.00038943,30]
[394248361,1763407840505,-500.0,0.00038943,30]
[394248362,1763407840514,-1495.98,0.00038943,2]
[394248363,1763407840523,-1495.98,0.00038943,2]
[394248364,1763407840532,-1495.98,0.00038943,2]
[394248365,1763407840541,-500.0,0.00038943,30]
[394248366,1763407840551,-151.0,0.0003895,14]
[394248367,1763407840560,-151.0,0.0003895,14]
[394248368,1763407840569,-500.0,0.00038952,30]
[394248369,1763407840578,-500.0,0.00038952,30]
[394248370,1763407840588,-500.0,0.00038952,30]
[394248371,1763407840597,-500.0,0.00038952,7]
[394248372,1763407840607,-500.0,0.00038952,7]
[394248373,1763407840615,-500.0,0.00038952,7]
[394248374,1763407840625,-500.0,0.00038952,30]
[394248375,1763407840634,-481.01736033,0.00038952,30]
[394248376,1763407840643,-500.0,0.00038952,30]
[394248377,1763407840652,-500.0,0.00038952,30]
[394248378,1763407840661,-500.0,0.00038952,30]
[394248379,1763407840671,-1495.98,0.00038952,2]
[394248380,1763407840681,-1495.98,0.00038952,2]
[394248381,1763407840690,-1495.98,0.00038952,2]
[394248382,1763407840700,-500.0,0.00038952,30]
[394248383,1763407840710,-525.92146982,0.00038952,30]
[394248384,1763407840720,-150.0,0.00038952,20]
[394248385,1763407840729,-503.79066701,0.00038973,5]
[394248386,1763407840739,-503.88116874,0.00038973,5]
[394248387,1763407840748,-500.0,0.00038973,5]
[394248388,1763407840757,-150.0,0.00039015,7]
[394248389,1763407840767,-150.0,0.00039015,7]
[394248390,1763407840776,-150.0,0.00039015,7]
[394248391,1763407840786,-150.0,0.00039015,7]
[394248392,1763407840796,-150.0,0.00039015,7]
[394248393,1763407840806,-300.0,0.0003909,7]
[394248394,1763407840815,-1495.98,0.00039093,2]
[394248395,1763407840825,-500.0,0.00039103,30]
[394248396,1763407840834,-75117.42,0.00039104,2]
[394248397,1763407840844,-151.0,0.00039104,120]
[394248398,1763407840854,-151.0,0.00039104,120]
[394248399,1763407840863,-151.0,0.00039104,120]
[394248400,1763407840872,-151.0,0.00039104,120]
[394248401,1763407840881,-151.0,0.00039104,120]
[394248402,1763407840890,-151.0,0.00039104,120]
[394248403,1763407840900,-151.0,0.00039104,120]
[394248404,1763407840909,-152.694712,0.00039104,7]
[394248405,1763407840919,-252.208175,0.00039104,28]
[394248406,1763407840928,-151.0,0.00039104,120]
[394248407,1763407840937,-151.0,0.00039104,120]
[394248408,1763407840947,-151.0,0.00039104,120]
[394248409,1763407840958,-151.0,0.00039104,120]
[394248410,1763407840967,-183.814124,0.00039104,120]
[394248411,1763407840980,-151.0,0.00039104,120]
[394248412,1763407840989,-151.0,0.00039104,120]
[394248413,1763407840998,-151.0,0.00039104,120]
[394248414,1763407841007,-151.0,0.00039104,120]
[394248415,1763407841017,-151.0,0.00039104,30]
[394248416,1763407841027,-151.0,0.00039104,30]
[394248417,1763407841037,-151.0,0.00039104,120]
[394248418,1763407841047,-151.0,0.00039104,120]
[394248419,1763407841058,-364.06819,0.00039104,120]
[394248420,1763407841067,-364.06819,0.00039104,120]
[394248421,1763407841076,-364.06819,0.00039104,120]
[394248422,1763407841085,-364.06819,0.00039104,120]
[394248423,1763407841095,-166.110746,0.00039104,120]
[394248424,1763407841104,-151.0,0.00039104,120]
[394248425,1763407841113,-151.0,0.00039104,120]
[394248426,1763407841123,-151.0,0.00039104,120]
[394248427,1763407841132,-151.0,0.00039104,120]
[394248428,1763407841142,-151.0,0.00039104,120]
[394248429,1763407841152,-151.0,0.00039104,120]
[394248430,1763407841160,-265.593615,0.00039104,120]
[394248431,1763407841169,-151.0,0.00039104,120]
[394248432,1763407841178,-151.0,0.00039104,120]
[394248433,1763407841187,-211.644851,0.00039104,120]
[394248434,1763407841197,-15838.78,0.0003911,2]
[394248435,1763407841209,-505.01585357,0.00039173,5]
[394248436,1763407841218,-500.0,0.00039173,5]
[394248437,1763407841228,-300.0,0.00039227,7]
[394248438,1763407841238,-300.0,0.00039363,7]
[394248439,1763407841247,-150.0,0.00039426,7]
[394248440,1763407841256,-156100.08236204,0.00039451,7]
[394248441,1763407841266,-502.20352986,0.00039521,5]
[394248442,1763407841274,-306.9318392,0.00039528,2]
[394248443,1763407841284,-4699.54609298,0.00039617,2]
[394248444,1763407841294,-161.88,0.00039654,2]
[394248445,1763407841303,-150.0,0.000397,7]
[394248446,1763407841312,-150.0,0.000397,7]
[394248447,1763407841322,-932.78038,0.00039721,5]
[394248448,1763407841331,-488.0,0.00039764,8]
[394248449,1763407841340,-169.45,0.00039836,2]
[394248450,1763407841350,-169.45,0.00039836,2]
[394248451,1763407841359,-1000.0,0.000399,2]
[394248452,1763407841369,-203.22338441,0.00040027,2]
[394248453,1763407841378,-150.0,0.00040042,7]
[394248454,1763407841387,-3764.72008145,0.00040069,15]
[394248455,1763407841396,-720.86,0.000401,14]
[394248456,1763407841405,-164.78,0.000401,30]
[394248457,1763407841414,-547.25,0.000401,30]
[394248458,1763407841423,-267.93,0.00040133,14]
[394248459,1763407841433,-1495.98,0.00040134,2]
[394248460,1763407841441,-300.0,0.00040147,2]
[394248462,1763407841451,-169.45,0.00040178,2]
[394248464,1763407841461,-150.0,0.00040247,7]
[394248466,1763407841470,-169.45,0.00040278,2]
[394248468,1763407841479,-4699.54609298,0.00040306,15]
[394248470,1763407841488,-828.0,0.00040316,7]
[394248472,1763407841497,-3764.72008145,0.00040335,15]
[394248474,1763407841506,-203.22338441,0.00040353,2]
[394248475,1763407841515,-828.0,0.00040356,7]
[394248476,1763407841524,-828.0,0.00040394,2]
[394248477,1763407841534,-169.45,0.00040478,2]
[394248479,1763407841543,-828.0,0.00040494,2]
[394248480,1763407841552,-488.61,0.00040548,2]
[394248481,1763407841561,-496.79221488,0.00040586,9]
[394248482,1763407841570,-3764.72008145,0.00040601,15]
[394248483,1763407841579,-203.22338441,0.00040618,2]
[394248484,1763407841588,-1000.0,0.00040633,21]
[394248485,1763407841598,-169.45,0.00040658,2]
[394248486,1763407841606,-169.45,0.00040658,2]
[394248487,1763407841616,-169.45,0.00040658,2]
[394248488,1763407841625,-183.5,0.00040685,2]
[394248489,1763407841634,-414.24,0.00040685,2]
[394248490,1763407841643,-169.45,0.00040685,2]
[394248491,1763407841653,-169.45,0.00040685,2]
[394248492,1763407841662,-169.45,0.00040685,2]
[394248493,1763407841672,-152.0,0.00040754,3]
[394248494,1763407841681,-1500.0,0.000408,2]
[394248495,1763407841690,-214.63798473,0.00040805,2]
[394248496,1763407841699,-3080.00338,0.0004082,6]
[394248497,1763407841710,-203.22338441,0.00040829,2]
[394248498,1763407841720,-651.0,0.00040854,7]
[394248499,1763407841729,-3764.72008145,0.00040867,15]
[394248500,1763407841738,-500.0,0.00040869,30]
[394248501,1763407841748,-1598.0,0.00040906,2]
[394248502,1763407841757,-821.0,0.00040906,2]
[394248503,1763407841766,-1275.0,0.00040906,2]
[394248504,1763407841775,-793.0,0.00040906,2]
[394248505,1763407841784,-705.0,0.00040906,2]
[394248506,1763407841793,-1318.0,0.00040906,2]
[394248507,1763407841802,-651.0,0.00040912,2]
[394248508,1763407841812,-4699.54609298,0.00040995,15]
[394248509,1763407841821,-164.0,0.00041,90]
[394248510,1763407841831,-1010.62245632,0.00041,30]
[394248511,1763407841840,-500.0,0.00041068,2]
[394248512,1763407841849,-150.0,0.00041068,7]
[394248513,1763407841859,-150.0,0.00041068,7]
[394248514,1763407841868,-150.0,0.00041068,7]
[394248515,1763407841876,-170.2040699,0.00041068,7]
[394248516,1763407841886,-278.08438806,0.00041068,7]
[394248517,1763407841896,-150.0,0.00041068,7]
[394248518,1763407841905,-150.0,0.00041068,7]
[394248519,1763407841914,-150.0,0.00041068,7]
[394248520,1763407841924,-150.0,0.00041068,7]
[394248521,1763407841933,-150.0,0.00041068,7]
[394248522,1763407841942,-162.67023792,0.00041073,5]
[394248523,1763407841952,-500.0,0.00041073,5]
[394248524,1763407841961,-502.00096171,0.00041073,5]
[394248525,1763407841971,-332.71817179,0.00041073,5]
[394248526,1763407841986,-501.49845435,0.00041073,5]
[394248527,1763407841995,-645.28559714,0.00041073,5]
[394248528,1763407842005,-501.63312491,0.00041073,5]
[394248529,1763407842014,-500.0,0.00041073,5]
[394248530,1763407842025,-500.96001496,0.00041073,5]
[394248531,1763407842034,-500.0,0.00041073,5]
[394248532,1763407842044,-155.57181973,0.00041073,5]
[394248533,1763407842053,-500.0,0.00041073,5]
[394248534,1763407842064,-500.0,0.00041073,5]
[394248535,1763407842073,-593.94747728,0.00041073,5]
[394248536,1763407842082,-527.27825092,0.00041073,5]
[394248537,1763407842091,-500.0,0.00041073,5]
[394248538,1763407842100,-630.66541162,0.00041073,5]
[394248539,1763407842110,-500.0,0.00041073,5]
[394248540,1763407842119,-500.0,0.00041073,5]
[394248541,1763407842128,-500.0,0.00041073,5]
[394248542,1763407842137,-490.58197567,0.00041073,5]
[394248543,1763407842147,-500.46051516,0.00041073,5]
[394248544,1763407842156,-500.92231122,0.00041073,5]
[394248545,1763407842164,-500.0,0.00041073,5]
[394248546,1763407842173,-305.52529526,0.00041073,5]
[394248547,1763407842182,-200.0,0.00041073,5]
[394248548,1763407842192,-500.0,0.00041073,5]
[394248549,1763407842203,-500.0,0.00041073,5]
[394248550,1763407842212,-500.0,0.00041073,5]
[394248551,1763407842221,-500.0,0.00041073,5]
[394248552,1763407842231,-499.8492798,0.00041073,5]
[394248553,1763407842240,-1495.98,0.00041084,2]
[394248554,1763407842249,-306.9318392,0.00041085,7]
[394248555,1763407842259,-500.0,0.00041094,7]
[394248556,1763407842268,-1495.98,0.00041094,2]
[394248557,1763407842277,-1495.98,0.00041094,2]
[394248558,1763407842287,-1495.98,0.00041094,2]
[394248559,1763407842296,-1495.98,0.00041094,2]
[394248560,1763407842305,-500.0,0.00041095,30]
[394248561,1763407842314,-500.0,0.00041095,30]
[394248562,1763407842324,-500.0,0.00041095,30]
[394248563,1763407842333,-352.94909924,0.00041095,30]
[394248564,1763407842342,-500.0,0.00041095,30]
[394248565,1763407842351,-498.55006797,0.00041095,30]
[394248566,1763407842361,-500.0,0.00041095,30]
[394248567,1763407842370,-500.0,0.00041095,30]
[394248568,1763407842380,-500.0,0.00041095,30]
[394248569,1763407842389,-500.0,0.00041095,30]
[394248570,1763407842399,-500.0,0.00041095,30]
[394248571,1763407842408,-500.0,0.00041095,30]
[394248572,1763407842417,-500.0,0.00041095,30]
[394248573,1763407842426,-413.33865517,0.00041095,30]
[394248574,1763407842435,-422.81095052,0.00041095,30]
[394248575,1763407842444,-500.0,0.00041095,30]
[394248576,1763407842456,-500.0,0.00041095,30]
[394248577,1763407842466,-1000.0,0.00041095,30]
[394248578,1763407842476,-648.14037601,0.00041095,30]
[394248579,1763407842485,-416.07685993,0.00041095,30]
[394248580,1763407842494,-500.0,0.00041095,30]
[394248581,1763407842504,-500.0,0.00041095,30]
[394248583,1763407842513,-500.0,0.00041095,30]
[394248584,1763407842523,-500.0,0.00041095,30]
[394248585,1763407842533,-500.0,0.00041095,30]
[394248586,1763407842544,-500.0,0.00041095,30]
[394248587,1763407842553,-500.0,0.00041095,30]
[394248589,1763407842562,-500.0,0.00041095,30]
[394248591,1763407842572,-500.0,0.00041095,30]
[394248594,1763407842581,-500.0,0.00041095,30]
[394248597,1763407842590,-500.0,0.00041095,30]
[394248599,1763407842599,-500.0,0.00041095,30]
[394248601,1763407842608,-500.0,0.00041095,30]
[394248603,1763407842618,-500.0,0.00041095,30]
[394248605,1763407842628,-500.0,0.00041095,30]
[394248608,1763407842638,-500.0,0.00041095,30]
[394248610,1763407842647,-500.0,0.00041095,30]
[394248612,1763407842657,-500.0,0.00041095,30]
[394248614,1763407842667,-500.0,0.00041095,30]
[394248616,1763407842676,-500.0,0.00041095,30]
[394248618,1763407842685,-500.0,0.00041095,30]
[394248620,1763407842695,-500.0,0.00041095,30]
[394248622,1763407842707,-500.0,0.00041095,30]
[394248624,1763407842716,-500.0,0.00041095,30]
[394248626,1763407842725,-500.0,0.00041095,30]
[394248628,1763407842735,-500.0,0.00041095,30]
[394248630,1763407842746,-500.0,0.00041095,30]
[394248632,1763407842755,-504.6655657,0.00041095,30]
[394248634,1763407842766,-500.0,0.00041095,30]
[394248635,1763407842775,-500.0,0.00041095,30]
[394248636,1763407842785,-500.0,0.00041095,30]
[394248637,1763407842794,-500.0,0.00041095,30]
[394248638,1763407842803,-500.0,0.00041095,30]
[394248639,1763407842813,-500.0,0.00041095,30]
[394248640,1763407842823,-500.0,0.00041095,30]
[394248642,1763407842833,-500.0,0.00041095,30]
[394248643,1763407842844,-500.0,0.00041095,30]
[394248645,1763407842853,-500.0,0.00041095,30]
[394248647,1763407842863,-500.0,0.00041095,30]
[394248649,1763407842872,-500.0,0.00041095,30]
[394248651,1763407842882,-500.0,0.00041095,30]
[394248653,1763407842891,-500.0,0.00041095,30]
[394248655,1763407842901,-500.0,0.00041095,30]
[394248656,1763407842911,-500.0,0.00041095,30]
[394248657,1763407842921,-500.0,0.00041095,30]
[394248658,1763407842932,-500.0,0.00041095,30]
[394248659,1763407842941,-500.0,0.00041095,30]
[394248660,1763407842953,-500.0,0.00041095,30]
[394248661,1763407842962,-500.0,0.00041095,30]
[394248662,1763407842972,-500.0,0.00041095,30]
[394248663,1763407842988,-500.0,0.00041095,30]
[394248664,1763407842997,-224.80420099,0.00041095,30]
[394248665,1763407843007,-617.45949531,0.00041095,30]
[394248667,1763407843018,-500.0,0.00041095,30]
[394248668,1763407843027,-500.0,0.00041095,30]
[394248669,1763407843037,-500.0,0.00041095,30]
[394248670,1763407843047,-500.0,0.00041095,30]
[394248671,1763407843058,-500.0,0.00041095,30]
[394248672,1763407843068,-500.0,0.00041095,30]
[394248673,1763407843077,-500.0,0.00041095,30]
[394248674,1763407843087,-500.0,0.00041095,30]
[394248675,1763407843096,-318.98866492,0.00041095,30]
[394248676,1763407843106,-500.0,0.00041095,30]
[394248677,1763407843115,-500.0,0.00041095,30]
[394248678,1763407843124,-500.0,0.00041095,30]
[394248679,1763407843134,-500.0,0.00041095,30]
[394248680,1763407843143,-500.0,0.00041095,30]
[394248681,1763407843152,-500.0,0.00041095,30]
[394248682,1763407843161,-500.0,0.00041095,30]
[394248683,1763407843170,-500.0,0.00041095,30]
[394248684,1763407843180,-500.0,0.00041095,30]
[394248685,1763407843190,-500.0,0.00041095,30]
[394248686,1763407843199,-500.0,0.00041095,30]
[394248687,1763407843211,-500.0,0.00041095,30]
[394248688,1763407843220,-500.0,0.00041095,30]
[394248689,1763407843229,-500.0,0.00041095,30]
[394248690,1763407843238,-350.00190688,0.00041095,30]
[394248691,1763407843247,-500.0,0.00041095,30]
[394248692,1763407843257,-500.0,0.00041095,30]
[394248693,1763407843266,-500.0,0.00041095,30]
[394248694,1763407843275,-500.0,0.00041095,30]
[394248695,1763407843284,-500.0,0.00041095,30]
[394248696,1763407843293,-500.0,0.00041095,30]
[394248697,1763407843302,-532.57909452,0.00041095,30]
[394248698,1763407843312,-500.0,0.00041095,30]
[394248699,1763407843321,-500.0,0.00041095,30]
[394248700,1763407843333,-500.0,0.00041095,30]
[394248701,1763407843342,-500.0,0.00041095,30]
[394248702,1763407843351,-225.50344737,0.00041095,30]
[394248703,1763407843361,-424.60516834,0.00041095,30]
[394248704,1763407843370,-500.0,0.00041095,30]
[394248705,1763407843379,-500.0,0.00041095,30]